bitfinex/quotes_BTCUSD_20251015
["timestamp","ask_amount","ask_price","bid_price","bid_amount"]
[1760561778338,0.13,111320.0,111310.0,0.18325056]
[1760561778539,0.13,111320.0,111310.0,0.18225056]
[1760561778973,0.34,111330.0,111320.0,0.17964959]
[1760561779361,0.47,111330.0,111320.0,0.18023581]
[1760561779541,1.3810684,111330.0,111320.0,0.18023581]
[1760561780601,0.47,111330.0,111320.0,0.18023581]
[1760561781843,0.47,111330.0,111320.0,0.18123581]
[1760561783152,0.13,111330.0,111320.0,0.18223581]
[1760561783400,0.13,111330.0,111320.0,0.38520593]
[1760561783653,0.13,111330.0,111320.0,0.27192593]
[1760561783884,0.13,111330.0,111320.0,0.38520593]
[1760561784109,0.13,111330.0,111320.0,0.27192593]
[1760561784329,0.13,111330.0,111320.0,0.38520593]
[1760561785015,0.34,111350.0,111340.0,0.17962996]
[1760561785242,1.37103614,111350.0,111340.0,0.17962996]
[1760561785946,1.19142231,111350.0,111340.0,0.17962996]
[1760561786173,0.63961383,111350.0,111340.0,0.17962996]
[1760561786450,1.37103614,111350.0,111340.0,0.17962996]
[1760561786658,0.17962996,111340.0,111320.0,0.39218904]
[1760561786863,1.25103614,111350.0,111340.0,0.17962996]
[1760561787069,0.86142231,111350.0,111340.0,0.17962996]
[1760561787503,1.04103614,111350.0,111340.0,0.17962996]
[1760561788739,1.04103614,111350.0,111340.0,0.18062996]
[1760561789189,1.04103614,111350.0,111340.0,0.18162996]
[1760561789805,0.86142231,111350.0,111340.0,0.18162996]
[1760561790216,1.04103614,111350.0,111340.0,0.18162996]
[1760561791523,0.86142231,111350.0,111340.0,0.18162996]
[1760561791988,1.20142231,111350.0,111340.0,0.18162996]
[1760561792208,1.38103614,111350.0,111340.0,0.18162996]
[1760561794689,0.47,111350.0,111340.0,0.18162996]
[1760561795157,1.20142231,111350.0,111340.0,0.18162996]
[1760561795565,0.9426517,111350.0,111340.0,0.18162996]
[1760561798125,0.13,111350.0,111340.0,0.18162996]
[1760561798550,0.13,111350.0,111340.0,0.29486996]
[1760561798772,0.13,111350.0,111340.0,0.18162996]
[1760561799498,0.13,111350.0,111340.0,0.29486996]
[1760561799700,0.1336,111350.0,111340.0,0.29486996]
[1760561799922,0.1336,111350.0,111340.0,0.18162996]
[1760561800145,0.1336,111350.0,111340.0,0.29486996]
[1760561800371,0.6062517,111350.0,111340.0,0.29486996]
[1760561800576,0.1336,111350.0,111340.0,0.29486996]
[1760561800778,0.6062517,111350.0,111340.0,0.18162996]
[1760561800928,0.0036,111350.0,111340.0,0.38456008]
[1760561801143,0.0036,111350.0,111340.0,0.27132008]
[1760561801368,0.0036,111350.0,111340.0,0.38456008]
[1760561802068,0.0036,111350.0,111340.0,0.27132008]
[1760561802266,0.0036,111350.0,111340.0,0.74397178]
[1760561802469,0.0036,111350.0,111340.0,0.74297178]
[1760561802671,0.0036,111350.0,111340.0,0.85621178]
[1760561803132,0.0036,111350.0,111340.0,0.85521178]
[1760561803352,1e-08,111350.0,111340.0,0.85721178]
[1760561803557,1e-08,111350.0,111340.0,0.78015406]
[1760561803766,1e-08,111350.0,111340.0,0.89339406]
[1760561803979,4.284432,111390.0,111380.0,0.17956545]
[1760561804194,0.6126517,111390.0,111380.0,0.17956545]
[1760561804845,0.14,111390.0,111380.0,0.17956545]
[1760561805057,0.14,111390.0,111380.0,0.29280545]
[1760561805285,0.14014928,111390.0,111380.0,0.29280545]
[1760561805530,0.16317727,111390.0,111380.0,0.29380545]
[1760561806446,0.63582897,111390.0,111380.0,0.18156545]
[1760561806666,0.16317727,111390.0,111380.0,0.29480545]
[1760561806882,0.63582897,111390.0,111380.0,0.18156545]
[1760561807294,0.16317727,111390.0,111380.0,0.29480545]
[1760561807505,0.16317727,111390.0,111380.0,0.18156545]
[1760561808111,0.16317727,111390.0,111380.0,0.38449557]
[1760561808316,0.14014928,111390.0,111380.0,0.27125557]
[1760561808482,0.14014928,111390.0,111380.0,0.38449557]
[1760561808928,0.16328583,111390.0,111380.0,0.27125557]
[1760561809155,0.16328583,111390.0,111380.0,0.38445557]
[1760561809354,0.57883869,111390.0,111380.0,0.38445557]
[1760561809558,0.16328583,111390.0,111380.0,0.27125557]
[1760561809707,0.57883869,111390.0,111380.0,0.38445557]
[1760561810137,0.14014928,111390.0,111380.0,0.38445557]
[1760561810758,0.00014928,111390.0,111380.0,0.80000843]
[1760561810960,0.00014928,111390.0,111380.0,0.68680843]
[1760561811356,0.00014928,111390.0,111380.0,0.38445557]
[1760561811558,0.00014928,111390.0,111380.0,0.27125557]
[1760561811991,0.00014928,111390.0,111380.0,0.38445557]
[1760561812187,0.00014928,111390.0,111380.0,0.27125557]
[1760561812388,0.00014928,111390.0,111380.0,0.38445557]
[1760561812595,0.00014928,111390.0,111380.0,0.27125557]
[1760561813145,0.00014928,111390.0,111380.0,0.38445557]
[1760561813636,0.41570214,111390.0,111380.0,0.38445557]
[1760561813869,0.41570214,111390.0,111380.0,0.27125557]
[1760561814082,0.00014928,111390.0,111380.0,0.27125557]
[1760561814307,0.00014928,111390.0,111380.0,0.38445557]
[1760561815462,0.00014928,111390.0,111380.0,0.27125557]
[1760561815660,0.00014928,111390.0,111380.0,0.38445557]
[1760561816088,0.00014928,111390.0,111380.0,0.27125557]
[1760561816294,0.00014928,111390.0,111380.0,0.38445557]
[1760561817107,0.00014928,111390.0,111380.0,0.27125557]
[1760561817309,0.00014928,111390.0,111380.0,0.38445557]
[1760561817594,0.41570214,111390.0,111380.0,0.38445557]
[1760561817731,0.00014928,111390.0,111380.0,0.38445557]
[1760561820298,0.00014928,111390.0,111380.0,0.27125557]
[1760561820573,0.00014928,111390.0,111380.0,0.38445557]
[1760561821306,0.00014928,111390.0,111380.0,0.68680843]
[1760561821736,0.00014928,111390.0,111380.0,0.80000843]
[1760561822258,0.18849368,111410.0,111400.0,0.17953321]
[1760561822434,0.71454599,111410.0,111400.0,0.17953321]
[1760561823065,0.73801942,111410.0,111400.0,0.17953321]
[1760561823264,0.73801942,111410.0,111390.0,0.17954933]
[1760561823459,0.83110572,111400.0,111390.0,0.17954933]
[1760561823663,0.87110572,111400.0,111390.0,0.17954933]
[1760561824387,0.45555286,111400.0,111390.0,0.17954933]
[1760561824785,0.04,111400.0,111390.0,0.17954933]
[1760561824993,0.04,111400.0,111390.0,0.68479231]
[1760561825417,0.04,111400.0,111390.0,0.26923945]
[1760561825670,0.04,111400.0,111390.0,0.38239945]
[1760561825884,1.05063893,111400.0,111380.0,0.36453928]
[1760561826090,0.17956545,111380.0,111370.0,0.17958129]
[1760561826297,5.38510317,111380.0,111370.0,0.17958157]
[1760561826712,5.72510317,111380.0,111370.0,0.17958157]
[1760561826930,5.56485836,111380.0,111370.0,0.17958157]
[1760561827274,4.73375264,111380.0,111370.0,0.17958157]
[1760561827476,0.7748735,111380.0,111370.0,0.17958157]
[1760561828289,0.41555286,111380.0,111370.0,0.17958157]
[1760561828498,4.69998486,111400.0,111390.0,0.17954933]
[1760561828709,4.83931851,111400.0,111390.0,0.17954933]
[1760561828949,0.55488651,111400.0,111390.0,0.17954933]
[1760561829159,0.53555286,111400.0,111390.0,0.17954933]
[1760561829361,1.13063893,111400.0,111390.0,0.17954933]
[1760561831654,0.95110572,111400.0,111390.0,0.18054933]
[1760561831881,0.12,111400.0,111390.0,0.18054933]
[1760561832084,0.95110572,111400.0,111390.0,0.18154933]
[1760561832284,1.15000284,111400.0,111390.0,0.18154933]
[1760561834067,1.16675759,111400.0,111390.0,0.18154933]
[1760561836507,5.45118959,111400.0,111390.0,0.002]
[1760561836767,6.3028717,111400.0,111390.0,0.002]
[1760561836959,6.39557357,111400.0,111390.0,0.002]
[1760561837170,6.42257764,111400.0,111390.0,0.002]
[1760561837585,6.42257764,111400.0,111390.0,0.001]
[1760561837786,4.46401357,111370.0,111360.0,0.18857573]
[1760561837996,5.35203203,111370.0,111360.0,0.1795977]
[1760561838201,5.35203203,111370.0,111350.0,0.25136192]
[1760561838202,0.1795977,111360.0,111350.0,0.25136192]
[1760561838402,1.01070342,111360.0,111350.0,0.25136593]
[1760561838604,1.01070342,111360.0,111350.0,0.17961383]
[1760561839022,1.02744101,111360.0,111350.0,0.17976311]
[1760561839221,1.01070342,111360.0,111350.0,0.17976311]
[1760561839460,0.67892132,111360.0,111350.0,0.00114928]
[1760561839667,4.96335332,111360.0,111350.0,0.00114928]
[1760561839876,5.30335332,111360.0,111350.0,0.00114928]
[1760561840082,5.32271336,111360.0,111350.0,0.00114928]
[1760561840320,5.30335332,111360.0,111350.0,0.18076311]
[1760561840921,5.30335332,111360.0,111350.0,0.00114928]
[1760561841338,5.30335332,111360.0,111350.0,0.00214928]
[1760561842608,5.30335332,111360.0,111350.0,0.18176311]
[1760561843933,5.28662491,111360.0,111350.0,0.18176311]
[1760561844603,5.0951496,111360.0,111350.0,0.18176311]
[1760561844818,5.4047473,111360.0,111350.0,0.00214928]
[1760561845736,5.4047473,111360.0,111350.0,0.18176311]
[1760561846171,4.754432,111360.0,111350.0,0.18176311]
[1760561846392,0.49960205,111380.0,111370.0,0.17958157]
[1760561846611,4.41111988,111380.0,111360.0,0.1795692]
[1760561846849,4.93660878,111370.0,111350.0,0.1907438]
[1760561847101,0.47259521,111360.0,111350.0,0.1907438]
[1760561847321,0.78219291,111360.0,111350.0,0.1897438]
[1760561847527,0.60259521,111360.0,111350.0,0.1887438]
[1760561847735,0.78219291,111360.0,111350.0,0.17976311]
[1760561848195,5.06662491,111360.0,111350.0,0.17976311]
[1760561848402,5.06662491,111360.0,111350.0,0.18176311]
[1760561849015,4.88702721,111360.0,111350.0,0.18176311]
[1760561849427,0.13,111360.0,111350.0,0.18176311]
[1760561849634,0.34,111370.0,111360.0,0.1795977]
[1760561849838,0.42,111370.0,111360.0,0.1795977]
[1760561850479,0.59958157,111370.0,111360.0,0.1795977]
[1760561850784,0.08,111370.0,111360.0,0.1795977]
[1760561850966,0.34,111380.0,111370.0,0.17956848]
[1760561851423,0.39,111380.0,111370.0,0.17956848]
[1760561852508,0.05,111380.0,111370.0,0.17956848]
[1760561852719,4.284432,111390.0,111380.0,0.179551]
[1760561853138,0.13,111390.0,111380.0,0.179551]
[1760561854482,0.13,111390.0,111380.0,0.180551]
[1760561854724,0.13,111390.0,111380.0,0.293751]
[1760561854932,0.13,111390.0,111380.0,0.180551]
[1760561855146,0.13,111390.0,111380.0,0.293751]
[1760561855360,0.13,111390.0,111380.0,0.27024112]
[1760561855603,0.01250069,111400.0,111390.0,0.17954933]
[1760561855816,0.11250069,111400.0,111390.0,0.26923945]
[1760561856023,0.11250069,111400.0,111390.0,0.38243945]
[1760561856839,0.11250069,111400.0,111390.0,0.38343945]
[1760561857456,0.11250069,111400.0,111390.0,0.38443945]
[1760561857656,0.11250069,111400.0,111390.0,0.27123945]
[1760561858295,0.11250069,111400.0,111390.0,0.38443945]
[1760561858951,0.11250069,111400.0,111390.0,0.27123945]
[1760561859162,0.11250069,111400.0,111390.0,0.38443945]
[1760561860426,0.11250069,111400.0,111390.0,0.27123945]
[1760561860630,0.11250069,111400.0,111390.0,0.38439945]
[1760561861247,0.11250069,111400.0,111390.0,0.27123945]
[1760561861662,0.11250069,111400.0,111390.0,0.38439945]
[1760561861870,0.11250069,111400.0,111390.0,0.27123945]
[1760561862073,0.11250069,111400.0,111390.0,0.38439945]
[1760561862498,0.11250069,111400.0,111390.0,0.27123945]
[1760561862706,0.11250069,111400.0,111390.0,0.38439945]
[1760561863266,0.11250069,111400.0,111390.0,0.27123945]
[1760561863467,0.11250069,111400.0,111390.0,0.38439945]
[1760561863722,0.11250069,111400.0,111390.0,0.27123945]
[1760561863867,0.11250069,111400.0,111390.0,0.38439945]
[1760561865380,0.01250069,111400.0,111390.0,0.27123945]
[1760561865585,0.01250069,111400.0,111390.0,0.38439945]
[1760561866296,0.01250069,111400.0,111390.0,0.27123945]
[1760561866505,0.01250069,111400.0,111390.0,0.38439945]
[1760561866691,0.01250069,111400.0,111390.0,0.27123945]
[1760561866916,0.01250069,111400.0,111390.0,0.38439945]
[1760561867665,0.01250069,111400.0,111390.0,0.27123945]
[1760561867867,0.01250069,111400.0,111390.0,1.00179532]
[1760561868229,0.01250069,111400.0,111390.0,0.38439945]
[1760561868430,0.01250069,111400.0,111390.0,1.11495532]
[1760561868627,0.01250069,111400.0,111390.0,1.00179532]
[1760561868845,0.01250069,111400.0,111390.0,0.27123945]
[1760561869303,0.01250069,111400.0,111390.0,0.38439945]
[1760561870979,0.01250069,111400.0,111390.0,0.42058173]
[1760561871348,0.01250069,111400.0,111390.0,0.30742173]
[1760561871570,0.01250069,111400.0,111390.0,0.42058173]
[1760561871820,0.01250069,111400.0,111390.0,0.30742173]
[1760561872593,0.01250069,111400.0,111390.0,0.42058173]
[1760561872998,0.01250069,111400.0,111390.0,0.30742173]
[1760561873156,0.01250069,111400.0,111390.0,0.42058173]
[1760561874398,0.01250069,111400.0,111390.0,0.30742173]
[1760561874620,0.01250069,111400.0,111390.0,0.42058173]
[1760561875036,0.01250069,111400.0,111390.0,0.27123945]
[1760561875667,0.01250069,111400.0,111390.0,0.38439945]
[1760561875867,0.01250069,111400.0,111390.0,0.27123945]
[1760561876126,0.01250069,111400.0,111390.0,0.38439945]
[1760561876345,0.01250069,111400.0,111390.0,0.27123945]
[1760561876527,0.01250069,111400.0,111390.0,0.38439945]
[1760561876861,0.01250069,111400.0,111390.0,0.27123945]
[1760561877060,0.01250069,111400.0,111390.0,0.38439945]
[1760561877542,0.01250069,111400.0,111390.0,0.18154933]
[1760561878546,0.01250069,111400.0,111390.0,0.18054933]
[1760561879626,0.01250069,111400.0,111390.0,0.17954933]
[1760561880535,0.01250069,111400.0,111390.0,0.18154933]
[1760561880767,4.284432,111410.0,111400.0,0.17953321]
[1760561881008,4.394432,111410.0,111400.0,0.17953321]
[1760561881261,0.11,111410.0,111400.0,0.17953321]
[1760561881473,4.284432,111410.0,111400.0,0.17953321]
[1760561881678,4.46394909,111410.0,111400.0,0.17953321]
[1760561881901,0.01,111410.0,111400.0,0.17953321]
[1760561883460,0.02675284,111410.0,111400.0,0.17953321]
[1760561886323,0.01676031,111410.0,111400.0,0.17953321]
[1760561886523,4.284432,111400.0,111390.0,0.33752679]
[1760561886783,0.92008908,111400.0,111390.0,0.149]
[1760561887014,1.26008908,111400.0,111390.0,0.149]
[1760561887219,5.54452108,111400.0,111390.0,0.149]
[1760561887346,4.284432,111380.0,111370.0,0.25133251]
[1760561887547,4.284432,111380.0,111370.0,0.25133367]
[1760561887776,5.22131202,111380.0,111360.0,0.17959148]
[1760561887980,4.284432,111370.0,111360.0,0.17959148]
[1760561888858,4.110308,111370.0,111360.0,0.17959148]
[1760561889063,5.36042932,111380.0,111370.0,0.17958157]
[1760561889274,5.49716014,111380.0,111370.0,0.001]
[1760561889700,4.28988957,111370.0,111360.0,0.001]
[1760561889911,4.110308,111370.0,111360.0,0.1805977]
[1760561890146,4.110308,111370.0,111360.0,0.1815977]
[1760561890349,4.110308,111370.0,111360.0,0.1805977]
[1760561890550,4.110308,111370.0,111360.0,0.1795977]
[1760561891706,4.110308,111360.0,111350.0,0.18859452]
[1760561891981,0.91013744,111370.0,111350.0,0.27828464]
[1760561892110,4.110308,111360.0,111350.0,0.18859452]
[1760561892313,0.1795977,111360.0,111350.0,0.18859452]
[1760561892512,0.73055587,111360.0,111350.0,0.18859452]
[1760561893013,0.74069025,111360.0,111350.0,0.18959452]
[1760561893423,0.01013438,111360.0,111350.0,0.18959452]
[1760561893857,0.04591333,111360.0,111350.0,0.18959452]
[1760561894062,0.01013438,111360.0,111350.0,0.18959452]
[1760561894471,0.00013438,111360.0,111350.0,0.18959452]
[1760561894833,0.03713335,111360.0,111350.0,0.18959452]
[1760561895037,0.00013438,111360.0,111350.0,0.27928464]
[1760561895239,0.00013438,111360.0,111350.0,0.28028464]
[1760561895976,0.00013438,111360.0,111350.0,1.01084051]
[1760561896178,0.00013438,111360.0,111350.0,0.39344464]
[1760561896329,0.00013438,111360.0,111350.0,0.28028464]
[1760561896560,0.00013438,111360.0,111350.0,0.39344464]
[1760561896767,0.00013438,111360.0,111350.0,0.28028464]
[1760561897061,0.00013438,111360.0,111350.0,0.39344464]
[1760561897264,0.00013438,111360.0,111350.0,0.28028464]
[1760561897458,0.00013438,111360.0,111350.0,0.39344464]
[1760561897762,0.00013438,111360.0,111350.0,0.28028464]
[1760561897961,0.00013438,111360.0,111350.0,0.39344464]
[1760561898343,4.110308,111380.0,111370.0,0.17958157]
[1760561898547,0.04733151,111380.0,111370.0,0.17973085]
[1760561899173,0.03733151,111380.0,111370.0,0.17973085]
[1760561899378,0.51954991,111390.0,111370.0,0.17973085]
[1760561899588,4.110308,111380.0,111370.0,0.17973085]
[1760561900013,0.00897988,111360.0,111320.0,0.00058622]
[1760561900277,0.00897988,111360.0,111320.0,0.18038283]
[1760561900278,4.84086387,111330.0,111320.0,0.18038283]
[1760561900505,0.01,111330.0,111320.0,0.18038283]
[1760561900722,0.04743378,111330.0,111320.0,0.18038283]
[1760561901356,0.01,111330.0,111320.0,0.18038283]
[1760561901979,0.01,111330.0,111320.0,0.18138283]
[1760561902190,0.18857892,111360.0,111330.0,0.0089823]
[1760561902424,4.63388175,111360.0,111350.0,0.17961383]
[1760561902633,4.79682084,111360.0,111350.0,0.17961383]
[1760561902858,0.50691514,111360.0,111350.0,0.17961383]
[1760561903311,0.16691514,111360.0,111350.0,0.17961383]
[1760561903948,0.34651284,111360.0,111350.0,0.17961383]
[1760561905918,0.16691514,111360.0,111350.0,0.17961383]
[1760561907369,0.13,111360.0,111350.0,0.17961383]
[1760561907576,4.28987345,111380.0,111370.0,0.17957296]
[1760561907777,4.73987345,111380.0,111370.0,0.17957296]
[1760561909350,4.73987345,111380.0,111360.0,0.17957635]
[1760561909351,4.110308,111370.0,111360.0,0.17957635]
[1760561909487,4.240308,111370.0,111360.0,0.17957635]
[1760561909685,0.13,111370.0,111360.0,0.17957635]
[1760561910096,0.30958157,111370.0,111360.0,0.17957635]
[1760561910293,0.30958157,111370.0,111350.0,0.27828464]
[1760561910530,0.91015357,111360.0,111340.0,0.17961556]
[1760561910727,4.110308,111350.0,111340.0,0.26944006]
[1760561911512,0.22473254,111370.0,111360.0,0.1795977]
[1760561911513,4.66606147,111370.0,111360.0,0.1795977]
[1760561911801,0.1561719,111370.0,111360.0,0.1795977]
[1760561912188,0.33575347,111370.0,111360.0,0.1795977]
[1760561912410,4.2664799,111370.0,111360.0,0.1795977]
[1760561912619,0.1561719,111370.0,111360.0,0.1795977]
[1760561913224,0.33575347,111370.0,111360.0,0.1795977]
[1760561913631,0.1561719,111370.0,111360.0,0.1795977]
[1760561913840,0.33575347,111370.0,111360.0,0.1795977]
[1760561915377,0.80825048,111370.0,111360.0,0.1795977]
[1760561916255,0.82496749,111370.0,111360.0,0.1795977]
[1760561917310,0.84433307,111370.0,111360.0,0.1795977]
[1760561918168,0.1795977,111360.0,111340.0,0.27842155]
[1760561918353,0.47249701,111350.0,111340.0,0.27842155]
[1760561918562,5.10241884,111350.0,111340.0,0.00013438]
[1760561918773,5.35383071,111350.0,111340.0,0.00013438]
[1760561918995,5.37320087,111350.0,111340.0,0.00013438]
[1760561920441,5.39856014,111350.0,111340.0,0.00013438]
[1760561921068,5.39856014,111350.0,111320.0,0.00058622]
[1760561921069,5.4525355,111350.0,111320.0,0.00058622]
[1760561921313,5.1971411,111330.0,111320.0,0.00073611]
[1760561921520,5.33386297,111330.0,111320.0,0.00073611]
[1760561923157,5.33386297,111330.0,111320.0,0.18039834]
[1760561923158,0.57141187,111330.0,111320.0,0.18039834]
[1760561923342,0.55469,111330.0,111320.0,0.19836456]
[1760561923555,0.55469,111330.0,111320.0,0.18039834]
[1760561923803,1.02718701,111330.0,111320.0,0.00073611]
[1760561923974,1.04388163,111330.0,111320.0,0.00073611]
[1760561924180,5.33383572,111330.0,111320.0,0.00073611]
[1760561924964,5.3599183,111330.0,111320.0,0.00073611]
[1760561926314,5.37925124,111330.0,111320.0,0.00073611]
[1760561926528,5.15418963,111330.0,111320.0,0.00073611]
[1760561926732,5.15418963,111330.0,111320.0,0.18039834]
[1760561927139,5.33383572,111330.0,111320.0,0.00073611]
[1760561928522,5.35316637,111330.0,111320.0,0.00073611]
[1760561928730,5.17352028,111330.0,111320.0,0.18039834]
[1760561928944,5.35316637,111330.0,111320.0,0.00073611]
[1760561929152,5.3535279,111330.0,111320.0,0.00073611]
[1760561929557,5.2588379,111330.0,111320.0,0.00073611]
[1760561929766,5.07919181,111330.0,111320.0,0.00073611]
[1760561930171,5.07919181,111330.0,111320.0,0.18039834]
[1760561930381,0.47669462,111330.0,111320.0,0.00073611]
[1760561930598,0.65634071,111330.0,111320.0,0.00073611]
[1760561930869,0.35669462,111330.0,111320.0,0.28805468]
[1760561931075,0.34,111330.0,111320.0,0.27008846]
[1760561931924,0.81249701,111330.0,111320.0,0.27008846]
[1760561932130,0.8548986,111330.0,111320.0,0.18039834]
[1760561932335,0.83821806,111330.0,111320.0,0.18139834]
[1760561932773,0.34,111330.0,111320.0,0.18239834]
[1760561932980,0.34,111330.0,111320.0,0.27208846]
[1760561933179,0.34,111330.0,111320.0,0.27108846]
[1760561933382,0.34,111330.0,111320.0,0.27008846]
[1760561933797,0.05646763,111370.0,111340.0,0.17962996]
[1760561934013,4.110308,111360.0,111350.0,0.19757521]
[1760561934237,4.250308,111360.0,111350.0,0.17961383]
[1760561934444,0.34,111350.0,111340.0,0.27830157]
[1760561934692,0.81249701,111350.0,111340.0,0.27830157]
[1760561934903,0.34,111330.0,111320.0,0.1813974]
[1760561935133,0.81249701,111330.0,111320.0,0.38436752]
[1760561935369,0.81249701,111330.0,111320.0,0.27108752]
[1760561935851,0.81249701,111330.0,111320.0,0.27008752]
[1760561936508,0.81249701,111330.0,111320.0,0.27108752]
[1760561936687,0.81249701,111330.0,111320.0,0.27208752]
[1760561941449,0.81249701,111330.0,111320.0,0.38532752]
[1760561942524,0.81249701,111330.0,111320.0,0.27208752]
[1760561943538,0.81249701,111330.0,111320.0,0.09242623]
[1760561944101,1.28499402,111330.0,111320.0,0.09242623]
[1760561944308,1.28499402,111330.0,111320.0,0.27208846]
[1760561944719,1.28499402,111330.0,111320.0,0.27108846]
[1760561945322,1.28499402,111330.0,111320.0,0.27008846]
[1760561946194,1.28580016,111330.0,111320.0,0.27008846]
[1760561946409,1.28580016,111330.0,111320.0,0.27108846]
[1760561947749,0.94580016,111330.0,111320.0,0.27208846]
[1760561951827,0.34,111350.0,111330.0,0.17963194]
[1760561952013,0.81290008,111340.0,111330.0,0.26932206]
[1760561952214,0.81290008,111340.0,111330.0,0.38252206]
[1760561953011,0.81290008,111340.0,111330.0,0.26932206]
[1760561953212,0.81290008,111340.0,111330.0,0.08969012]
[1760561953417,1.58832391,111340.0,111330.0,0.08969012]
[1760561953613,1.76795387,111340.0,111330.0,0.08969012]
[1760561953860,0.34,111330.0,111320.0,0.29359834]
[1760561954056,1.58832391,111330.0,111320.0,0.38332846]
[1760561954690,1.17221594,111330.0,111320.0,0.38332846]
[1760561954965,1.17221594,111330.0,111320.0,0.27008846]
[1760561955414,1.17221594,111330.0,111320.0,0.38328846]
[1760561955595,1.17221594,111330.0,111320.0,0.38428846]
[1760561956236,1.17221594,111330.0,111320.0,0.38528846]
[1760561956672,0.75610797,111330.0,111320.0,0.38528846]
[1760561957098,0.75610797,111330.0,111320.0,0.27208846]
[1760561957288,0.75610797,111330.0,111320.0,0.38528846]
[1760561957732,0.75610797,111330.0,111320.0,0.27208846]
[1760561957943,0.75610797,111330.0,111320.0,0.38528846]
[1760561958396,0.34,111350.0,111340.0,0.17962348]
[1760561958607,1.17221594,111350.0,111330.0,0.17964609]
[1760561958819,0.34,111350.0,111340.0,0.19759295]
[1760561959034,0.34,111350.0,111340.0,0.17962996]
[1760561959466,0.34,111350.0,111340.0,0.26932008]
[1760561959867,1.17221594,111350.0,111340.0,0.26932008]
[1760561960278,1.17221594,111350.0,111330.0,0.18862033]
[1760561960483,5.69863191,111340.0,111330.0,0.08969012]
[1760561960683,1.58832391,111340.0,111320.0,0.18039755]
[1760561960900,0.83221594,111330.0,111320.0,0.27008767]
[1760561961111,0.83215166,111330.0,111320.0,0.38328767]
[1760561961326,0.83215166,111330.0,111320.0,0.27008767]
[1760561961544,0.83215166,111330.0,111320.0,0.38328767]
[1760561962187,0.83215166,111330.0,111320.0,0.27108767]
[1760561962393,0.41607583,111330.0,111320.0,0.38528767]
[1760561962603,0.41607583,111330.0,111320.0,0.38428767]
[1760561962841,0.41607583,111330.0,111320.0,0.38528767]
[1760561963038,0.41607583,111330.0,111320.0,0.27208767]
[1760561963244,0.83215166,111330.0,111320.0,0.38528767]
[1760561963447,0.34,111340.0,111330.0,0.17964609]
[1760561964025,0.34,111340.0,111320.0,0.38528767]
[1760561964419,0.34,111340.0,111330.0,0.19761069]
[1760561964626,0.81279912,111340.0,111330.0,0.18064609]
[1760561967753,0.81279912,111340.0,111330.0,0.18164609]
[1760561968676,0.34,111340.0,111330.0,0.18164609]
[1760561968886,0.34,111340.0,111330.0,0.27133621]
[1760561969272,0.34,111340.0,111330.0,0.38453621]
[1760561972032,0.4117521,111370.0,111340.0,0.18859686]
[1760561972292,0.34,111350.0,111340.0,0.26932008]
[1760561972518,0.34,111350.0,111340.0,0.38252008]
[1760561972718,0.81279912,111350.0,111340.0,0.26932008]
[1760561972902,0.34,111350.0,111340.0,0.38252008]
[1760561973152,0.34,111350.0,111340.0,0.08969012]
[1760561973372,0.34,111340.0,111330.0,0.001]
[1760561973831,0.81279912,111340.0,111330.0,0.001]
[1760561974047,0.34,111330.0,111320.0,0.18039532]
[1760561974255,0.34,111330.0,111320.0,0.38328544]
[1760561975487,0.34,111340.0,111320.0,0.38328544]
[1760561975706,0.34,111340.0,111320.0,0.27008544]
[1760561975910,0.34,111340.0,111320.0,0.27108544]
[1760561976143,0.34,111340.0,111330.0,1.13190592]
[1760561976392,0.02701075,111350.0,111330.0,0.39151851]
[1760561976393,4.110308,111350.0,111330.0,0.39151851]
[1760561976596,1.32319973,111360.0,111330.0,0.26932615]
[1760561976809,4.450308,111340.0,111330.0,0.26932615]
[1760561977032,0.34,111340.0,111330.0,0.26932615]
[1760561978289,0.34,111340.0,111330.0,0.27032615]
[1760561978493,0.34,111340.0,111330.0,0.38356615]
[1760561978907,0.34,111340.0,111330.0,0.26932615]
[1760561979110,0.34,111340.0,111330.0,0.38356615]
[1760561979528,0.34,111340.0,111330.0,0.27032615]
[1760561979736,0.34,111340.0,111330.0,0.26932615]
[1760561979963,0.34,111340.0,111330.0,0.38356615]
[1760561980395,0.34,111340.0,111330.0,0.38456615]
[1760561980841,0.34,111340.0,111330.0,0.09169012]
[1760561981270,0.34,111340.0,111330.0,0.002]
[1760561981534,0.34,111340.0,111330.0,0.001]
[1760561981976,1.28482354,111340.0,111330.0,0.001]
[1760561982207,1.27103507,111340.0,111330.0,0.002]
[1760561982440,1.29804726,111340.0,111330.0,0.002]
[1760561982877,4.67695015,111340.0,111330.0,0.002]
[1760561983109,5.40835526,111340.0,111330.0,0.001]
[1760561983360,4.28995409,111330.0,111320.0,0.00073611]
[1760561983571,5.0813592,111330.0,111320.0,0.00073611]
[1760561983810,5.10692093,111330.0,111320.0,0.00073611]
[1760561984051,5.44692093,111330.0,111320.0,0.00073611]
[1760561985189,5.4213592,111330.0,111320.0,0.00073611]
[1760561985417,4.68995409,111330.0,111320.0,0.00073611]
[1760561986386,5.4213592,111330.0,111320.0,0.00073611]
[1760561986590,5.44413973,111330.0,111320.0,0.00073611]
[1760561987227,5.4213592,111330.0,111320.0,0.00073611]
[1760561990000,5.44837543,111330.0,111320.0,0.00073611]
[1760561990360,5.54306543,111330.0,111320.0,0.00073611]
[1760561990838,4.81166032,111330.0,111320.0,0.00073611]
[1760561990989,5.54306543,111330.0,111320.0,0.00073611]
[1760561993643,5.63274751,111330.0,111320.0,0.00073611]
[1760561994071,5.65833555,111330.0,111320.0,0.00073611]
[1760561996430,5.6347057,111330.0,111320.0,0.00073611]
[1760561998529,4.87771255,111330.0,111320.0,0.00073611]
[1760561998724,0.76740455,111330.0,111320.0,0.00073611]
[1760561998936,0.58775846,111330.0,111320.0,0.00073611]
[1760561999156,0.76740455,111330.0,111320.0,0.00073611]
[1760561999359,0.52170623,111330.0,111320.0,0.00073611]
[1760561999514,0.70135232,111330.0,111320.0,0.00073611]
[1760562000649,4.81166032,111330.0,111320.0,0.00073611]
[1760562000802,5.54306543,111330.0,111320.0,0.00073611]
[1760562001001,5.69274348,111330.0,111320.0,0.00073611]
[1760562001402,4.904487,111330.0,111320.0,0.00073611]
[1760562001602,0.52170623,111330.0,111320.0,0.00073611]
[1760562001816,0.73833178,111330.0,111320.0,0.00073611]
[1760562002018,5.58004489,111330.0,111320.0,0.00073611]
[1760562002242,5.60566116,111330.0,111320.0,0.00073611]
[1760562003049,5.69534324,111330.0,111320.0,0.00073611]
[1760562003318,5.60566116,111330.0,111320.0,0.00073611]
[1760562003428,5.29041384,111330.0,111320.0,0.00073611]
[1760562004788,5.70657163,111330.0,111320.0,0.00073611]
[1760562005429,5.60614878,111330.0,111320.0,0.00073611]
[1760562007781,5.45655296,111320.0,111310.0,0.00024973]